bitfinex/quotes_ETHUSD_20251118
["timestamp","ask_amount","ask_price","bid_price","bid_amount"]
[1763469553671,0.4076,3063.4,3062.4,1.11260208]
[1763469554401,0.002,3063.5,3063.3,0.6853]
[1763469554705,0.4153,3063.4,3062.3,0.1814]
[1763469555011,0.4076,3063.3,3062.3,0.1814]
[1763469555296,0.4076,3063.3,3062.3,0.6542]
[1763469555507,0.277,3063.2,3062.4,0.03265412]
[1763469555814,0.277,3063.2,3062.4,0.50545412]
[1763469556114,0.002,3063.5,3062.4,0.50545412]
[1763469556271,0.277,3063.1,3062.4,1.16540333]
[1763469556472,0.002,3063.5,3063.4,0.4972]
[1763469556794,0.279,3063.5,3063.4,0.4972]
[1763469556995,0.4173,3063.5,3062.8,0.4728]
[1763469557198,0.8249,3063.5,3062.5,0.90699264]
[1763469557406,0.8249,3063.5,3062.6,0.59301313]
[1763469557914,0.4076,3063.4,3062.6,0.59301313]
[1763469558105,1.061,3063.3,3062.7,0.4728]
[1763469558304,1.061,3063.3,3062.6,0.59301313]
[1763469558817,1.061,3063.3,3062.6,1.06581313]
[1763469559112,1.061,3063.3,3062.7,0.19728058]
[1763469559424,0.4103,3063.4,3062.7,0.19728058]
[1763469559425,1.061,3063.2,3062.7,0.19728058]
[1763469559579,0.5468,3062.8,3062.4,0.65033864]
[1763469559783,0.2784,3062.7,3062.3,0.1814]
[1763469560082,0.277,3062.7,3062.3,0.6542]
[1763469560290,0.277,3062.7,3062.6,0.4972]
[1763469560728,0.277,3062.7,3062.4,0.4648]
[1763469560940,0.277,3062.7,3062.6,0.4613]
[1763469561121,0.277,3062.7,3062.4,0.4648]
[1763469561328,0.1383,3062.5,3062.0,1.63566942]
[1763469561511,0.277,3062.7,3062.1,0.16356694]
[1763469561833,0.277,3062.7,3062.2,0.4648]
[1763469562419,0.277,3062.7,3062.1,0.16356694]
[1763469562420,0.4103,3062.6,3062.1,0.16356694]
[1763469562932,0.4103,3062.6,3061.7,1.63566942]
[1763469563308,0.4103,3062.6,3061.7,0.66010009]
[1763469563509,0.4103,3062.6,3061.5,0.90799264]
[1763469563817,0.277,3062.7,3061.6,0.03266266]
[1763469564022,0.6873,3062.7,3061.7,0.4648]
[1763469564433,0.4103,3062.6,3061.5,0.64157905]
[1763469564650,0.4103,3062.6,3061.6,0.75817701]
[1763469565001,0.4103,3062.6,3061.6,0.29337701]
[1763469565221,0.4103,3062.6,3061.6,0.75817701]
[1763469565423,0.4103,3062.6,3061.5,0.64157905]
[1763469565623,0.4103,3062.6,3061.7,0.4648]
[1763469566300,0.02944148,3062.5,3061.6,0.001]
[1763469566500,0.4103,3062.6,3061.6,0.001]
[1763469566706,0.4103,3062.5,3061.6,0.001]
[1763469567101,0.1365,3062.9,3062.4,0.4613]
[1763469567304,0.1365,3062.9,3061.7,0.4648]
[1763469567305,1.338,3062.8,3061.7,1.17086942]
[1763469567535,1.338,3062.8,3062.1,0.4648]
[1763469569349,1.338,3062.8,3061.6,0.001]
[1763469569350,0.4103,3062.2,3061.6,0.001]
[1763469569675,0.277,3062.1,3061.6,0.001]
[1763469570075,0.1385,3061.7,3061.6,0.001]
[1763469571388,0.5488,3061.7,3061.6,0.001]
[1763469572229,0.277,3061.7,3061.6,0.001]
[1763469572471,1.4763,3061.7,3061.6,0.001]
[1763469573037,1.8839,3061.7,3061.6,0.001]
[1763469573392,2.31884548,3061.7,3061.6,0.001]
[1763469574344,1.228404,3061.7,3061.6,0.001]
[1763469574565,2.31884548,3061.7,3061.6,0.001]
[1763469575175,2.289404,3061.7,3061.6,0.001]
[1763469575550,0.951404,3061.7,3061.6,0.001]
[1763469575847,2.31884548,3061.7,3061.6,0.001]
[1763469576275,2.289404,3061.7,3061.6,0.001]
[1763469577049,0.951404,3061.7,3061.6,0.001]
[1763469577248,2.289404,3061.7,3061.6,0.001]
[1763469579873,2.31884548,3061.7,3061.6,0.001]
[1763469580077,0.951404,3061.7,3061.6,0.001]
[1763469580272,2.289404,3061.7,3061.6,0.001]
[1763469580877,0.951404,3061.7,3061.6,0.001]
[1763469581073,2.289404,3061.7,3061.6,0.001]
[1763469581480,0.951404,3061.7,3061.6,0.001]
[1763469581713,2.289404,3061.7,3061.6,0.001]
[1763469581910,2.31884548,3061.7,3061.6,0.001]
[1763469582110,2.289404,3061.7,3061.6,0.001]
[1763469582623,1.881804,3061.7,3061.6,0.001]
[1763469582913,2.288604,3061.7,3061.6,0.001]
[1763469583276,0.5451,3061.7,3061.6,0.001]
[1763469583611,1.4755,3061.7,3061.6,0.001]
[1763469583816,0.4145,3061.7,3061.6,0.001]
[1763469583981,1.4755,3061.7,3061.6,0.001]
[1763469585212,1.8831,3061.7,3061.6,0.001]
[1763469586508,1.4755,3061.7,3061.6,0.001]
[1763469587001,1.8831,3061.7,3061.6,0.001]
[1763469587202,2.288604,3061.7,3061.6,0.001]
[1763469589037,1.881004,3061.7,3061.6,0.001]
[1763469589400,0.1375,3061.7,3061.6,0.001]
[1763469589603,0.1371,3061.9,3061.6,0.4795]
[1763469589803,1.338,3061.8,3061.6,0.4795]
[1763469590005,0.277,3061.7,3061.6,0.4795]
[1763469590627,0.277,3061.7,3061.6,0.001]
[1763469590906,0.4161,3061.7,3061.6,0.001]
[1763469591606,0.277,3061.7,3061.6,0.001]
[1763469592641,0.4095,3062.6,3061.6,0.973]
[1763469592840,1.338,3062.5,3062.1,0.1954]
[1763469593335,1.338,3062.5,3061.9,0.1954]
[1763469593633,1.7475,3062.5,3061.9,0.1954]
[1763469594430,0.30393758,3062.4,3061.9,0.1954]
[1763469594948,1.77694148,3062.5,3061.9,0.1954]
[1763469595147,1.36744148,3062.5,3061.9,0.1954]
[1763469595347,0.30393843,3062.4,3061.9,0.1954]
[1763469595528,0.02944148,3062.3,3061.7,0.4935]
[1763469595852,0.30393843,3062.4,3061.7,0.4935]
[1763469596749,1.338,3062.3,3061.7,0.4935]
[1763469597048,0.277,3062.2,3061.7,0.4935]
[1763469597421,0.277,3062.2,3062.1,0.4785]
[1763469597946,0.277,3062.2,3062.1,0.972]
[1763469598715,1.338,3062.2,3062.1,0.972]
[1763469599749,1.061,3062.2,3062.1,0.972]
[1763469599951,1.338,3062.2,3062.1,0.972]
[1763469600151,1.338,3062.2,3062.1,1.18654142]
[1763469600532,0.0012,3063.5,3062.1,1.18654142]
[1763469600728,1.338,3063.4,3062.2,1.69957047]
[1763469600935,0.002,3062.6,3062.2,1.69957047]
[1763469601155,0.002,3062.6,3062.3,1.66691421]
[1763469601156,0.277,3062.5,3062.3,1.66691421]
[1763469601342,0.002,3062.6,3062.4,0.16995705]
[1763469601542,0.002,3062.6,3062.5,0.4785]
[1763469601942,0.002,3062.6,3062.5,0.972]
[1763469602454,0.002,3062.6,3062.5,0.4785]
[1763469602654,0.002,3062.6,3062.3,0.65107434]
[1763469602655,0.4181,3062.6,3062.3,0.65107434]
[1763469602856,0.279,3062.6,3061.8,0.90699264]
[1763469603049,0.002,3062.6,3062.5,0.4785]
[1763469603672,0.002,3062.6,3062.5,0.972]
[1763469603827,0.002,3062.6,3062.5,1.00465306]
[1763469603828,1.34,3062.6,3062.5,1.00465306]
[1763469604029,1.34,3062.6,3062.5,0.972]
[1763469606453,1.3392,3062.6,3062.5,0.972]
[1763469608662,0.0012,3062.6,3062.5,0.972]
[1763469608861,1.061,3062.6,3062.5,1.87899264]
[1763469609065,1.338,3062.6,3062.5,2.52563988]
[1763469609226,0.0012,3063.5,3062.8,0.4713]
[1763469609444,0.0012,3063.5,3062.5,5.45363988]
[1763469609445,0.0012,3063.5,3063.4,0.6533]
[1763469609646,1.3392,3063.5,3063.4,0.6533]
[1763469609846,1.3392,3063.5,3063.4,1.1386]
[1763469611344,1.3392,3063.5,3063.4,0.4713]
[1763469611652,1.3392,3063.5,3063.4,0.9566]
[1763469611852,0.0012,3063.5,3063.4,0.9566]
[1763469612073,1.3392,3063.5,3063.4,0.9566]
[1763469613100,0.002,3063.8,3063.4,0.9566]
[1763469613278,1.061,3063.5,3063.1,0.182]
[1763469613580,0.002,3063.8,3063.7,0.4713]
[1763469613770,0.002,3063.8,3063.2,0.4853]
[1763469613973,0.002,3063.8,3063.1,0.182]
[1763469614278,0.002,3063.8,3063.1,0.68089926]
[1763469614480,0.277,3063.7,3063.1,1.16619926]
[1763469614782,0.277,3063.7,3063.1,0.68089926]
[1763469615555,0.277,3063.7,3063.1,0.49889926]
[1763469615556,0.6865,3063.7,3063.1,0.49889926]
[1763469617199,0.002,3063.8,3063.2,0.4853]
[1763469617200,0.277,3063.6,3063.2,0.4853]
[1763469617721,0.002,3063.8,3063.5,0.4713]
[1763469617895,0.002,3063.8,3063.7,0.4713]
[1763469618120,1.34,3063.8,3063.7,0.4713]
[1763469618292,0.002,3063.8,3063.7,0.9566]
[1763469618765,1.34,3063.8,3063.7,0.9566]
[1763469621106,1.339,3063.8,3063.7,0.9566]
[1763469621267,1.339,3063.8,3063.7,1.14295926]
[1763469621466,0.002,3063.9,3063.7,1.14295926]
[1763469621709,0.002,3063.9,3063.8,1.0084392]
[1763469621911,1.062,3063.9,3063.8,0.9758]
[1763469622669,1.339,3063.9,3063.8,0.9758]
[1763469623766,1.06,3063.9,3063.8,0.9758]
[1763469623978,0.002,3064.1,3063.8,0.9758]
[1763469624274,0.002,3064.1,3064.0,0.478]
[1763469624498,1.339,3064.1,3064.0,0.9758]
[1763469625396,10.21,3065.9,3064.0,4.8758]
[1763469625600,0.4095,3065.7,3064.9,0.478]
[1763469625796,0.1391,3065.0,3064.5,0.4978]
[1763469626096,0.277,3064.9,3064.5,0.4978]
[1763469626600,0.277,3064.9,3064.3,5.30479264]
[1763469626823,0.4133,3064.9,3064.4,0.53047926]
[1763469627516,0.8228,3064.9,3064.4,0.53047926]
[1763469628039,0.1391,3064.5,3064.3,4.56823451]
[1763469628199,0.0041,3064.4,3064.3,3.9]
[1763469629200,0.4136,3064.4,3064.3,3.9]
[1763469629403,0.4136,3064.4,3063.2,1.17341421]
[1763469629602,0.135,3063.9,3063.3,0.55723135]
[1763469629912,0.2717,3063.9,3063.3,0.4978]
[1763469630120,0.4087,3063.8,3063.3,0.66779871]
[1763469630340,0.139,3063.4,3062.8,0.9111]
[1763469630654,0.139,3063.4,3062.8,0.63995142]
[1763469630935,0.277,3063.7,3062.8,0.4133]
[1763469630936,0.1371,3062.9,3062.8,0.4133]
[1763469631148,0.5525,3062.9,3062.8,0.4133]
[1763469631450,0.9585,3062.9,3062.8,0.4133]
[1763469631665,0.5525,3062.9,3062.8,0.4133]
[1763469631962,1.337,3062.9,3062.8,0.4133]
[1763469632174,0.1367,3063.9,3062.8,1.3891]
[1763469632331,1.7457,3063.8,3062.8,1.3891]
[1763469632534,0.02944148,3063.7,3062.8,1.3891]
[1763469632735,0.43814148,3063.7,3062.8,0.8913]
[1763469633045,0.43814148,3063.7,3062.8,0.4133]
[1763469633242,0.43814148,3063.7,3062.8,0.9111]
[1763469633442,1.337,3063.8,3062.8,0.9111]
[1763469633443,0.405504,3064.1,3062.9,0.1885]
[1763469633643,1.337,3064.0,3062.9,0.6863]
[1763469633858,0.4087,3064.2,3063.0,0.53044773]
[1763469634181,0.30327091,3064.8,3063.1,0.405504]
[1763469634464,1.06,3064.1,3063.4,1.17341421]
[1763469634665,0.277,3064.0,3063.4,1.17341421]
[1763469634865,0.277,3064.0,3063.5,0.4978]
[1763469635067,0.277,3064.0,3063.9,0.478]
[1763469635565,0.277,3064.0,3063.9,0.9758]
[1763469636148,0.85224148,3064.0,3063.2,2.08040685]
[1763469636357,0.0041,3063.7,3063.3,0.20804069]
[1763469636666,0.4087,3064.5,3063.1,0.4962]
[1763469636834,1.337,3064.4,3063.1,0.52884666]
[1763469637036,1.337,3064.4,3063.1,0.4962]
[1763469637232,0.43814148,3064.3,3063.1,0.4962]
[1763469637438,0.43814148,3064.3,3062.9,1.36191421]
[1763469637769,0.541804,3064.9,3063.1,1.17341421]
[1763469637770,0.4087,3064.6,3063.1,1.17341421]
[1763469637957,1.06,3064.5,3063.1,1.17341421]
[1763469638132,0.277,3064.4,3063.2,1.66961421]
[1763469638333,0.277,3064.4,3063.4,1.17341421]
[1763469638537,0.277,3064.4,3063.5,0.20804069]
[1763469638740,0.545,3064.9,3063.6,0.001]
[1763469638934,1.337,3064.8,3063.6,0.001]
[1763469639134,0.002,3064.0,3063.7,0.4962]
[1763469639438,0.277,3063.9,3063.7,0.4962]
[1763469639873,0.277,3063.9,3063.8,0.4669]
[1763469640073,0.277,3063.9,3063.6,0.001]
[1763469640369,0.277,3063.9,3063.6,0.18886549]
[1763469640671,0.4137,3063.9,3063.6,0.18886549]
[1763469641171,0.277,3063.9,3063.6,0.18886549]
[1763469641371,0.277,3063.9,3063.6,0.68506549]
[1763469642077,0.002,3064.0,3063.8,0.4669]
[1763469642241,0.002,3064.0,3063.9,0.9631]
[1763469642572,1.7477,3064.0,3063.6,0.18886549]
[1763469642940,0.4087,3063.7,3063.6,0.001]
[1763469643142,1.339,3064.0,3063.6,0.001]
[1763469643475,0.002,3064.0,3063.9,0.4669]
[1763469643855,1.339,3064.0,3063.9,0.4669]
[1763469644895,1.339,3064.0,3063.9,0.9631]
[1763469645666,0.002,3064.0,3063.9,0.4669]
[1763469645974,1.339,3064.0,3063.9,2.33318377]
[1763469646175,1.339,3064.0,3063.9,2.30054563]
[1763469646473,1.339,3064.0,3063.9,1.12713142]
[1763469646772,1.339,3064.0,3063.9,0.63093142]
[1763469646983,1.339,3064.0,3063.9,0.16403142]
[1763469647286,1.339,3064.0,3063.9,0.63093142]
[1763469647477,1.339,3064.0,3063.9,0.16403142]
[1763469647681,1.339,3064.0,3063.6,1.17441421]
[1763469647889,0.002,3064.0,3063.9,0.4669]
[1763469648095,1.339,3064.0,3063.9,1.64031421]
[1763469648269,1.06,3064.0,3063.9,2.13651421]
[1763469648592,0.002,3064.4,3064.0,0.90699264]
[1763469648783,0.002,3064.4,3064.3,0.4669]
[1763469649091,1.062,3064.4,3064.3,0.4669]
[1763469649290,1.062,3064.4,3064.3,0.9631]
[1763469649588,1.339,3064.4,3064.3,0.9631]
[1763469650291,1.339,3064.4,3064.3,1.19560142]
[1763469651284,1.339,3064.4,3064.3,0.23250142]
[1763469651464,1.339,3064.4,3064.0,1.66961421]
[1763469651990,1.339,3064.4,3064.3,0.4669]
[1763469652492,1.339,3064.4,3064.0,1.17341421]
[1763469652694,1.339,3064.4,3064.1,0.4962]
[1763469653501,1.3382,3064.4,3064.3,0.4669]
[1763469654089,1.3382,3064.4,3064.3,0.9631]
[1763469654289,1.3382,3064.4,3064.3,1.17675142]
[1763469654689,1.06,3064.4,3064.3,1.2093853]
[1763469654889,1.06,3064.4,3064.3,2.08374406]
[1763469654890,1.337,3064.4,3064.3,2.08374406]
[1763469655089,0.4087,3065.9,3064.4,0.90699264]
[1763469655289,0.4087,3065.9,3064.7,1.17282221]
[1763469655494,0.4087,3065.9,3064.8,0.4962]
[1763469655702,0.4087,3065.9,3064.7,1.17282221]
[1763469656007,0.1363,3064.8,3064.5,0.29907367]
[1763469656167,0.278,3064.7,3064.5,0.29907367]
[1763469656373,0.278,3064.6,3064.5,0.29907367]
[1763469657203,0.278,3064.6,3064.5,0.9631]
[1763469657402,0.278,3064.6,3064.5,0.4669]
[1763469657606,0.278,3064.6,3064.3,1.83125089]
[1763469657807,0.278,3064.6,3064.3,0.65842868]
[1763469657993,0.278,3064.6,3064.3,0.4962]
[1763469658216,1.06,3064.5,3064.4,0.16690222]
[1763469659079,1.338,3064.5,3064.4,2.03699486]
[1763469659607,1.06,3064.5,3064.4,2.03699486]
[1763469660404,0.002,3064.9,3064.4,2.03699486]
[1763469660611,0.002,3064.9,3064.8,0.4669]
[1763469660830,0.278,3064.9,3064.8,0.9631]
[1763469661511,0.4087,3065.6,3064.8,0.4669]
[1763469661806,0.4087,3065.6,3064.7,1.17282221]
[1763469662062,0.4087,3065.6,3064.5,3.05192402]
[1763469662063,0.02944148,3065.5,3064.5,1.55852027]
[1763469662402,0.2761,3064.6,3064.3,0.64716355]
[1763469662622,0.2761,3064.6,3064.2,1.17282221]
[1763469662940,0.278,3064.5,3064.0,1.67002221]
[1763469663124,0.1363,3064.9,3064.0,1.67002221]
[1763469663337,0.278,3064.8,3064.2,1.17282221]
[1763469663662,0.4087,3065.5,3064.8,0.4669]
[1763469663812,0.4087,3065.5,3064.4,1.17282221]
[1763469663813,0.278,3065.4,3064.6,1.17282221]
[1763469664007,0.278,3065.4,3064.4,1.75923332]
[1763469664008,0.6867,3065.4,3064.5,1.17282221]
[1763469664208,0.6867,3065.4,3064.4,1.17282221]
[1763469664562,0.4087,3065.3,3064.5,1.47201839]
[1763469666432,0.4087,3065.3,3064.5,1.96301839]
[1763469666829,0.1357,3066.0,3064.6,1.69645289]
[1763469667064,0.1357,3066.0,3065.3,0.4829]
[1763469667373,0.1357,3066.0,3065.2,0.196]
[1763469667374,0.4087,3067.7,3065.9,6.488368]
[1763469667678,0.278,3067.3,3066.8,1.17282221]
[1763469667823,0.278,3067.3,3066.9,1.40142842]
[1763469668026,0.278,3067.3,3067.0,1.17282221]
[1763469668246,1.06,3067.2,3066.9,0.196]
[1763469668464,1.06,3067.2,3067.1,0.6789]
[1763469668667,1.73773342,3069.8,3067.1,0.6789]
[1763469668668,0.1357,3068.1,3067.3,0.4829]
[1763469668968,1.06,3067.9,3067.2,1.17282221]
[1763469669260,1.06,3067.9,3067.2,0.31280555]
[1763469669494,1.06,3067.9,3067.1,0.196]
[1763469669668,6.005468,3068.9,3067.1,0.196]
[1763469669669,6.005468,3069.6,3067.8,0.4829]
[1763469669876,0.4087,3068.8,3067.2,0.52360302]
[1763469670026,0.279,3068.7,3067.2,0.491]
[1763469670228,0.4087,3068.8,3067.2,0.491]
[1763469670558,1.339,3068.7,3067.2,0.52360302]
[1763469670761,0.4087,3069.2,3067.4,0.405504]
[1763469670963,1.06,3069.0,3067.4,1.6109271]
[1763469671165,1.339,3069.0,3067.6,0.405504]
[1763469671460,1.339,3069.0,3067.7,0.491]
[1763469671664,0.4087,3069.2,3067.7,0.491]
[1763469671826,1.06,3069.0,3067.8,7.58379421]
[1763469672026,0.5454,3070.0,3068.0,0.405504]
[1763469672251,1.339,3069.9,3068.9,0.4829]
[1763469672727,1.339,3069.9,3069.8,0.6789]
[1763469672928,0.1367,3069.8,3069.0,0.491]
[1763469673128,0.1398,3069.1,3068.1,0.491]
[1763469673357,1.338,3069.0,3068.2,0.03259239]
[1763469673551,0.279,3068.9,3068.0,0.196]
[1763469673790,0.279,3068.9,3068.1,0.491]
[1763469673991,0.4087,3069.6,3068.1,0.491]
[1763469674193,1.743504,3069.5,3068.1,0.491]
[1763469674506,0.405504,3069.3,3068.1,0.491]
[1763469675067,0.4087,3069.4,3068.1,0.52359346]
[1763469675267,0.1367,3069.8,3068.1,0.52359346]
[1763469675268,1.338,3069.3,3068.1,0.52359346]
[1763469675591,0.405504,3069.7,3068.1,0.52359346]
[1763469675890,1.338,3069.2,3068.1,0.491]
[1763469676291,1.338,3069.2,3068.2,0.03259239]
[1763469676590,1.338,3069.2,3068.1,0.491]
[1763469676793,1.338,3069.2,3068.3,0.03259133]
[1763469677020,0.1367,3069.8,3068.3,0.03259133]
[1763469677203,0.1367,3069.8,3068.4,0.491]
[1763469677497,0.002,3069.8,3068.5,0.03258921]
[1763469677669,1.059,3069.7,3068.4,0.491]
[1763469678057,1.059,3069.6,3068.5,0.03258921]
[1763469678261,0.279,3069.5,3068.6,0.491]
[1763469678463,0.1363,3068.6,3068.0,0.196]
[1763469678705,0.1406,3068.1,3067.1,0.687]
[1763469678997,1.338,3068.0,3067.2,0.491]
[1763469679197,1.31489264,3068.4,3067.2,0.491]
[1763469679400,1.7459,3068.3,3067.2,0.491]
[1763469679709,0.26528926,3068.2,3067.2,0.491]
[1763469679924,1.338,3068.1,3067.2,0.491]
[1763469680060,1.338,3068.1,3067.2,0.52360302]
[1763469680385,1.338,3068.1,3067.2,0.491]
[1763469680585,0.1363,3068.6,3067.2,0.491]
[1763469680817,1.059,3068.0,3067.2,0.491]
[1763469681017,1.059,3067.9,3067.2,0.491]
[1763469681198,1.059,3067.8,3067.3,0.03260196]
[1763469681527,1.059,3067.7,3067.2,0.52360302]
[1763469681733,1.059,3067.7,3067.2,0.491]
[1763469681933,0.4079,3068.5,3067.2,0.491]
[1763469682689,0.4079,3068.5,3067.3,0.03260196]
[1763469682913,0.1363,3068.6,3067.3,0.03260196]
[1763469683088,0.1363,3068.9,3067.4,0.860904]
[1763469683524,0.1363,3068.9,3067.6,0.405504]
[1763469683693,0.4079,3069.3,3067.7,0.03259771]
[1763469683899,6.46267815,3069.8,3067.8,0.405504]
[1763469683900,0.002,3069.8,3067.8,0.405504]
[1763469684130,0.279,3069.7,3068.0,0.405504]
[1763469684289,0.279,3069.7,3068.2,0.405504]
[1763469684489,0.002,3069.8,3068.2,0.405504]
[1763469684713,0.279,3069.7,3068.4,0.405504]
[1763469684917,0.279,3069.6,3068.4,0.405504]
[1763469685102,0.279,3069.6,3068.5,0.4554]
[1763469685591,0.279,3069.5,3068.5,0.4554]
[1763469686323,0.279,3069.5,3068.5,1.09262454]
[1763469686502,0.002,3069.8,3069.4,0.6462]
[1763469686699,0.279,3069.7,3069.0,0.4554]
[1763469686900,0.02944148,3069.6,3068.5,0.63722454]
[1763469687115,0.43734148,3069.6,3068.4,0.4554]
[1763469687304,0.43734148,3069.6,3068.1,0.1812]
[1763469687490,0.43734148,3069.6,3068.1,0.6366]
[1763469687690,0.43734148,3069.6,3068.1,0.1812]
[1763469687890,0.279,3069.5,3068.2,0.4554]
[1763469688120,1.059,3069.4,3068.2,0.4554]
[1763469688307,1.338,3069.3,3068.2,0.4554]
[1763469689000,1.059,3069.2,3068.2,0.4554]
[1763469689204,1.338,3069.2,3068.2,0.4554]
[1763469690204,0.405504,3069.4,3068.2,0.4554]
[1763469690420,0.4079,3069.5,3068.2,0.48799239]
[1763469690421,0.405504,3069.2,3068.2,0.48799239]
[1763469690622,1.338,3069.1,3068.2,0.4554]
[1763469690825,0.405504,3069.4,3068.2,0.4554]
[1763469691045,1.338,3069.3,3068.2,0.48799239]
[1763469691334,0.405504,3069.5,3068.2,0.48799239]
[1763469691730,1.338,3069.4,3068.2,0.48799239]
[1763469691938,0.17459,3069.4,3068.2,0.48799239]
[1763469692146,0.002,3069.8,3068.2,0.48799239]
[1763469692147,0.407504,3069.8,3068.2,0.48799239]
[1763469692592,0.002,3069.8,3068.2,0.48799239]
[1763469692795,1.338,3069.7,3068.2,0.48799239]
[1763469693017,0.002,3069.8,3068.2,0.4554]
[1763469693223,1.059,3069.7,3068.3,0.03259133]
[1763469693428,0.279,3069.6,3068.3,0.03259133]
[1763469693632,0.002,3069.8,3068.4,0.4554]
[1763469693847,1.059,3069.5,3068.5,0.03258921]
[1763469694003,6.46067815,3070.6,3068.4,0.4554]
[1763469694004,0.4079,3070.7,3069.7,0.6462]
[1763469694208,1.338,3070.1,3069.7,0.6462]
[1763469694407,6.46067815,3070.9,3069.8,0.4554]
[1763469694715,2.89106046,3070.8,3069.8,0.4554]
[1763469695094,0.64606782,3070.8,3069.8,0.4554]
[1763469695294,0.64606782,3070.8,3069.7,0.1812]
[1763469695295,1.49634148,3070.7,3069.7,0.1812]
[1763469695500,1.31489264,3070.7,3069.7,0.1812]
[1763469695698,2.24499264,3070.6,3068.9,0.86698631]
[1763469695897,0.405504,3070.5,3069.4,0.1812]
[1763469696150,0.813404,3070.5,3069.4,0.1812]
[1763469696445,0.405504,3070.3,3069.4,0.6616]
[1763469696627,0.405504,3070.1,3069.1,1.06308631]
[1763469696839,0.002,3069.7,3069.1,0.1961]
[1763469697335,0.272,3070.7,3069.7,0.4612]
[1763469697505,1.058,3069.6,3069.5,0.86698631]
[1763469697707,1.058,3069.6,3069.5,1.07096716]
[1763469698027,1.058,3069.6,3069.5,2.01256716]
[1763469698231,0.002,3070.4,3069.5,1.14558085]
[1763469698432,0.002,3070.4,3070.3,0.6573]
[1763469698633,0.002,3070.4,3070.3,1.1377]
[1763469698634,1.058,3070.4,3070.3,1.1377]
[1763469698836,1.058,3070.4,3070.3,1.33907919]
[1763469699034,0.272,3071.7,3070.3,2.5119014]
[1763469699201,1.058,3070.4,3070.3,1.73413097]
[1763469699570,0.272,3071.7,3070.3,2.21453097]
[1763469699731,0.405504,3071.6,3070.3,2.21453097]
[1763469700048,0.405504,3071.6,3070.4,0.2214531]
[1763469700331,0.272,3071.5,3070.3,1.33907919]
[1763469700636,0.90699264,3071.8,3070.4,0.4804]
[1763469700637,0.28,3071.4,3070.4,0.4804]
[1763469700847,0.404704,3071.3,3070.4,0.4804]
[1763469701013,1.17899264,3071.8,3070.4,0.4804]
[1763469701014,0.272,3071.8,3070.4,0.4804]
[1763469701340,1.15848895,3073.0,3070.4,0.4804]
[1763469701341,0.28,3071.7,3070.7,0.87545178]
[1763469701499,0.1363,3072.7,3071.7,0.6573]
[1763469701704,0.28,3072.6,3071.7,0.6573]
[1763469702350,0.1363,3072.7,3071.3,0.1961]
[1763469702351,0.58144148,3072.5,3071.3,0.1961]
[1763469702522,0.58144148,3072.5,3070.8,0.28]
[1763469702523,0.90699264,3072.0,3070.8,0.28]
[1763469702903,0.405504,3071.8,3070.8,0.7604]
[1763469703118,0.405504,3071.6,3070.8,0.7604]
[1763469703534,0.28,3071.5,3070.8,0.7604]
[1763469703724,0.90699264,3072.4,3070.9,0.4804]
[1763469703925,0.405504,3072.2,3070.9,0.4804]
[1763469704229,0.405504,3072.0,3070.9,0.4804]
[1763469704429,0.405504,3071.8,3070.9,0.4804]
[1763469704832,0.4083,3072.7,3070.9,0.4804]
[1763469705048,0.58144148,3072.6,3070.9,0.4804]
[1763469705262,0.405504,3072.5,3070.9,0.4804]
[1763469705448,1.31249664,3072.3,3070.8,0.28]
[1763469705625,0.405504,3072.1,3070.8,0.28]
[1763469705826,0.272,3072.2,3070.8,0.28]
[1763469706027,0.58144148,3072.1,3070.8,0.28]
[1763469706337,0.28,3072.0,3070.9,0.03256374]
[1763469706659,0.28,3071.9,3070.8,0.7604]
[1763469706868,0.405504,3072.3,3070.9,0.4804]
[1763469707034,0.405504,3071.7,3070.9,0.51296374]
[1763469707245,0.405504,3071.7,3070.9,0.4804]
[1763469707246,0.28,3071.6,3070.9,0.4804]
[1763469707739,0.28,3071.5,3071.0,0.03256268]
[1763469707954,0.405504,3071.9,3071.1,0.4804]
[1763469708151,0.405504,3072.3,3071.1,0.4804]
[1763469708345,0.405504,3072.1,3071.1,0.4804]
[1763469708757,0.405504,3071.9,3071.1,0.4804]
[1763469709464,0.90699264,3072.5,3071.1,0.4804]
[1763469709465,0.405504,3071.7,3071.1,0.4804]
[1763469709837,0.28,3071.6,3071.1,0.4804]
[1763469710158,1.338,3071.6,3071.1,0.4804]
[1763469710376,1.743504,3071.6,3071.5,0.4612]
[1763469710547,1.743504,3071.6,3071.1,0.4804]
[1763469711078,0.4083,3072.7,3071.5,0.4612]
[1763469711363,1.058,3072.6,3071.6,0.03255632]
[1763469711663,0.28,3072.5,3071.6,0.4804]
[1763469711876,0.1363,3072.9,3071.6,0.4804]
[1763469712094,1.338,3072.8,3071.6,0.4804]
[1763469712427,0.1363,3072.9,3071.6,0.4804]
[1763469712428,1.338,3072.7,3071.6,0.4804]
[1763469712739,0.405504,3072.6,3071.6,0.4804]
[1763469712950,0.405504,3072.4,3071.6,0.4804]
[1763469713180,1.338,3072.3,3071.6,0.4804]
[1763469713531,1.338,3072.3,3072.2,0.6573]